bitfinex/quotes_SOLUSD_20250710
["timestamp","ask_amount","ask_price","bid_price","bid_amount"]
[1752178423228,0.7,159.76,159.75,0.03]
[1752178423431,0.7,159.76,159.75,32.19]
[1752178425466,0.7,159.77,159.75,32.19]
[1752178426467,0.7,159.77,159.76,32.16]
[1752178426628,0.7,159.77,159.75,0.03]
[1752178428250,0.7,159.77,159.76,32.16]
[1752178428548,26.06,159.78,159.75,0.03]
[1752178428549,26.06,159.78,159.75,0.73]
[1752178428859,0.06,159.78,159.76,0.7]
[1752178430060,0.06,159.78,159.77,32.16]
[1752178430645,0.06,159.78,159.77,32.86]
[1752178435478,0.06,159.78,159.77,121.86]
[1752178440449,0.06,159.78,159.77,138.78684554]
[1752178456265,0.06,159.78,159.77,138.74684554]
[1752178466188,0.06,159.78,159.77,138.77684554]
[1752178469279,0.77,159.78,159.77,138.07684554]
[1752178469482,0.06,159.78,159.77,138.07684554]
[1752178469778,0.06,159.78,159.77,138.78684554]
[1752178470385,0.06,159.78,159.77,165.78684554]
[1752178479190,0.06,159.78,159.77,165.76684554]
[1752178488798,0.06,159.78,159.77,166.05116868]
[1752178488991,0.06,159.78,159.77,165.76684554]
[1752178489214,0.06,159.78,159.77,132.95684554]
[1752178489410,0.06,159.78,159.77,165.03684554]
[1752178489795,0.06,159.78,159.77,166.00116868]
[1752178492994,0.06,159.79,159.78,88.94]
[1752178493201,0.06,159.79,159.78,122.75234526]
[1752178493399,0.69,159.84,159.79,17.21116868]
[1752178493599,0.69,159.85,159.82,0.14216157]
[1752178493814,0.69,159.85,159.83,32.08]
[1752178494022,0.69,159.85,159.83,121.02]
[1752178494399,0.1,159.86,159.84,27.0]
[1752178494602,0.1,159.86,159.85,32.08]
[1752178495005,0.79,159.86,159.85,32.08]
[1752178498902,0.1,159.86,159.85,32.08]
[1752178499103,0.1,159.86,159.85,138.62684554]
[1752178500417,0.1,159.86,159.85,138.91116868]
[1752178500621,0.1,159.91,159.86,105.76684554]
[1752178500918,0.79,159.94,159.89,0.14216157]
[1752178501110,0.79,159.94,159.9,33.38539086]
[1752178501320,0.79,159.94,159.91,0.68]
[1752178501624,0.79,159.94,159.92,32.08]
[1752178502401,0.69,159.93,159.92,32.08]
[1752178503203,0.1,159.94,159.92,32.08]
[1752178503524,0.79,159.94,159.92,32.08]
[1752178504397,0.1,159.94,159.93,0.68]
[1752178504723,0.1,159.94,159.93,105.76684554]
[1752178505105,0.1,159.94,159.93,106.44684554]
[1752178505829,0.1,159.94,159.93,107.07211909]
[1752178507000,0.1,159.94,159.93,106.44684554]
[1752178509728,0.1,159.94,159.93,107.35644223]
[1752178509914,0.1,159.94,159.93,107.07211909]
[1752178510119,0.1,159.94,159.93,138.48684554]
[1752178510940,0.1,159.94,159.93,137.80684554]
[1752178512528,0.8,159.94,159.93,120.88]
[1752178513210,0.1,159.94,159.93,120.88]
[1752178513704,0.1,159.94,159.93,138.48684554]
[1752178513904,0.1,159.94,159.93,137.80684554]
[1752178514235,0.8,159.94,159.93,120.88]
[1752178514730,0.8,159.94,159.91,0.17216157]
[1752178514920,0.8,159.94,159.92,32.04]
[1752178515328,0.1,159.94,159.92,32.04]
[1752178515519,0.7,159.93,159.92,32.04]
[1752178517632,0.7,159.93,159.91,0.17216157]
[1752178517934,0.7,159.93,159.92,32.04]
[1752178520040,0.7,159.93,159.92,121.04]
[1752178520343,0.8,159.94,159.92,121.04]
[1752178521422,0.1,159.94,159.93,0.68]
[1752178521643,0.1,159.94,159.92,121.04]
[1752178522030,0.8,159.94,159.92,121.04]
[1752178522838,0.1,159.94,159.92,121.72]
[1752178523520,0.1,159.94,159.93,17.60684554]
[1752178523714,0.1,159.94,159.93,18.23211909]
[1752178524845,0.1,159.94,159.93,17.60684554]
[1752178525441,0.1,159.94,159.93,49.62684554]
[1752178525832,0.1,159.94,159.93,50.53644223]
[1752178526026,0.1,159.94,159.93,139.53644223]
[1752178526227,0.1,159.94,159.93,138.91116868]
[1752178526937,0.12685968,160.0,159.96,0.14216157]
[1752178527140,0.12685968,160.0,159.97,48.80468397]
[1752178527141,0.7,159.99,159.97,48.80468397]
[1752178527635,0.7,159.99,159.97,32.02]
[1752178527843,0.7,159.99,159.98,32.02]
[1752178529233,0.7,159.99,159.96,88.9]
[1752178529445,0.7,159.99,159.93,88.9]
[1752178530660,0.7,159.99,159.94,32.02]
[1752178530834,0.7,159.99,159.95,32.02]
[1752178532329,0.7,159.99,159.96,32.02]
[1752178535841,0.7,159.99,159.94,88.9]
[1752178537044,0.7,159.99,159.95,32.0]
[1752178538759,0.7,159.98,159.95,32.68]
[1752178538947,0.7,159.97,159.95,32.0]
[1752178539839,0.72,159.99,159.95,59.67]
[1752178540361,0.72,159.99,159.96,32.0]
[1752178540748,0.72,159.99,159.96,120.9]
[1752178543151,0.72,159.98,159.96,120.9]
[1752178546059,6.72851456,159.99,159.96,120.9]
[1752178546262,0.12685968,160.0,159.96,120.9]
[1752178546263,6.85537424,160.0,159.97,0.69]
[1752178546455,6.85537424,160.0,159.98,32.0]
[1752178546768,6.85537424,160.0,159.98,32.69]
[1752178546965,6.85537424,160.0,159.99,0.69]
[1752178546966,0.12685968,160.0,159.99,0.69]
[1752178552656,0.12685968,160.0,159.99,89.69]
[1752178557573,0.12685968,160.0,159.99,107.2418846]
[1752178557774,0.11417371,160.02,160.01,17.06900711]
[1752178557978,0.72,160.09,160.01,311.11612961]
[1752178558178,0.06097177,160.09,160.04,26.0]
[1752178558381,0.06097177,160.09,160.05,31.98]
[1752178558584,0.06097177,160.09,160.05,32.67]
[1752178558774,0.06097177,160.09,160.06,0.69]
[1752178558974,0.06097177,160.09,160.07,31.98]
[1752178559213,0.78097177,160.09,160.07,31.98]
[1752178559583,0.78097177,160.09,160.05,0.69]
[1752178559779,0.78097177,160.09,160.06,31.98]
[1752178559999,0.78097177,160.09,160.06,32.67]
[1752178560707,0.78097177,160.09,160.07,31.98]
[1752178561001,0.06097177,160.09,160.07,32.67]
[1752178561377,0.06097177,160.09,160.08,0.69]
[1752178562389,0.06097177,160.09,160.07,120.98]
[1752178562591,0.06097177,160.09,160.07,121.67]
[1752178563800,0.06097177,160.09,160.08,0.69]
[1752178564802,0.06097177,160.09,160.07,121.67]
[1752178565497,0.06097177,160.09,160.07,120.98]
[1752178565686,0.06097177,160.09,160.08,0.69]
[1752178566721,0.06097177,160.09,160.07,120.98]
[1752178566890,0.78097177,160.09,160.07,120.98]
[1752178567089,0.06097177,160.09,160.07,120.98]
[1752178567600,0.06097177,160.09,160.07,121.67]
[1752178567985,0.72,160.08,160.07,89.0]
[1752178568183,0.72,160.08,160.07,120.96]
[1752178568904,0.72,160.08,160.07,147.92]
[1752178570699,0.06097177,160.09,160.07,147.92]
[1752178570899,0.76097177,160.09,160.07,147.92]
[1752178571403,0.7,160.08,160.07,147.92]
[1752178572506,0.06097177,160.09,160.07,147.92]
[1752178572693,0.76097177,160.09,160.07,147.92]
[1752178573402,0.76097177,160.09,160.07,58.92]
[1752178574112,0.82097177,160.09,160.07,58.92]
[1752178574492,2.41197177,160.09,160.05,26.96]
[1752178574797,0.7,160.08,160.06,31.96]
[1752178574985,0.7,160.08,160.05,26.96]
[1752178575185,0.7,160.08,160.03,26.99]
[1752178575494,0.98432314,160.08,160.01,26.96]
[1752178575691,0.7,160.08,160.01,26.96]
[1752178575903,0.7,160.07,160.02,0.7]
[1752178576203,0.7,160.07,160.03,31.96]
[1752178576407,26.7,160.07,160.01,26.96]
[1752178576601,0.7,160.06,160.01,26.96]
[1752178577589,0.7,160.06,160.02,31.96]
[1752178577790,0.7,160.06,160.01,26.96]
[1752178578002,26.7,160.06,160.01,26.96]
[1752178578205,0.7,160.05,160.01,27.66]
[1752178578479,0.7,160.04,160.01,26.96]
[1752178579189,0.7,160.04,160.02,31.96]
[1752178581599,0.7,160.03,160.02,31.96]
[1752178582114,0.7,160.04,160.02,31.96]
[1752178582498,26.7,160.06,160.02,31.96]
[1752178582701,0.7,160.05,160.02,32.66]
[1752178582893,0.7,160.05,160.02,31.96]
[1752178583598,0.7,160.04,160.02,31.96]
[1752178586402,0.7,160.05,160.02,31.96]
[1752178587214,0.7,160.04,160.02,31.96]
[1752178587600,26.0,160.06,160.02,31.96]
[1752178587806,0.7,160.05,160.02,32.66]
[1752178588196,0.7,160.04,160.02,31.96]
[1752178589243,0.7,160.03,160.01,115.96]
[1752178590213,0.06097177,160.04,160.02,0.7]
[1752178590425,0.06097177,160.04,160.03,31.94]
[1752178590796,0.76097177,160.04,160.01,115.96]
[1752178591091,0.76097177,160.04,160.01,116.66]
[1752178591291,0.06097177,160.04,160.01,116.66]
[1752178591697,0.76097177,160.04,160.01,116.66]
[1752178592013,0.7,160.03,160.02,31.94]
[1752178592803,2.2596,160.03,159.97,115.96]
[1752178593201,0.7,160.02,159.97,26.96]
[1752178593414,0.7,160.02,159.98,31.94]
[1752178593625,0.7,160.02,159.97,26.96]
[1752178594220,0.7,160.02,159.98,31.94]
[1752178594413,0.7,160.02,159.97,26.96]
[1752178595132,0.7,160.02,159.96,89.0]
[1752178595295,0.7,160.02,159.97,0.7]
[1752178595723,1.5596,160.03,159.97,0.73]
[1752178595899,1.5596,160.03,159.98,31.94]
[1752178596100,1.6196,160.03,159.99,0.7]
[1752178596300,1.6196,160.03,160.0,32.64]
[1752178596805,2.3196,160.03,160.0,31.94]
[1752178600722,2.3196,160.03,160.0,32.65]
[1752178604028,0.66,160.02,160.0,31.94]
[1752178604253,0.72097177,160.02,160.0,31.94]
[1752178605113,0.06097177,160.02,160.0,31.94]
[1752178605622,0.06097177,160.02,160.0,32.65]
[1752178607423,0.06097177,160.02,160.01,0.71]
[1752178609723,0.06097177,160.02,160.0,31.94]
[1752178609902,0.06097177,160.02,160.0,32.65]
[1752178610512,0.06097177,160.02,160.01,0.71]
[1752178611529,0.06097177,160.02,160.0,32.65]
[1752178613328,0.72097177,160.02,160.0,31.94]
[1752178613522,0.66,160.01,159.99,88.93]
[1752178614629,0.66,160.01,160.0,31.94]
[1752178614825,0.66,160.01,159.99,88.93]
[1752178616621,0.66,160.01,159.97,27.01]
[1752178616622,0.94432314,160.01,159.97,27.01]
[1752178616828,16.92684554,160.0,159.97,27.01]
[1752178617011,0.94432314,159.99,159.97,27.01]
[1752178617412,0.66,159.98,159.97,27.01]
[1752178617615,0.66,159.98,159.97,58.95]
[1752178621033,0.66,159.98,159.97,27.01]
[1752178621034,43.87116868,159.98,159.97,27.01]
[1752178621228,61.53375478,159.98,159.97,27.01]
[1752178621535,61.53375478,159.98,159.97,58.95]
[1752178623438,54.8081583,159.98,159.97,58.95]
[1752178623754,61.4993147,159.98,159.97,27.01]
[1752178624061,61.4993147,159.98,159.97,58.95]
[1752178624225,61.4993147,159.98,159.97,27.01]
[1752178624551,0.28432314,159.97,159.91,0.07]
[1752178624755,26.0,159.93,159.91,0.07]
[1752178625048,0.66,159.92,159.91,0.07]
[1752178625647,0.66,159.92,159.91,32.01]
[1752178625852,0.66,159.92,159.91,0.07]
[1752178626038,0.66,159.92,159.91,32.01]
[1752178628028,26.0,159.93,159.91,32.01]
[1752178628436,26.66,159.93,159.91,32.01]
[1752178629248,26.0,159.93,159.91,32.73]
[1752178630555,26.68,159.93,159.91,32.01]
[1752178631055,26.0,159.93,159.91,32.01]
[1752178631656,26.0,159.93,159.91,32.73]
[1752178632237,26.0,159.93,159.91,32.01]
[1752178632449,26.0,159.93,159.92,0.72]
[1752178633743,0.28432314,159.96,159.92,0.72]
[1752178633944,26.0,159.95,159.93,31.94]
[1752178634156,26.0,159.95,159.93,0.72]
[1752178635352,26.0,159.95,159.94,31.94]
[1752178635557,26.0,159.95,159.93,0.72]
[1752178636355,26.0,159.96,159.94,0.72]
[1752178636560,0.68,159.99,159.95,0.72]
[1752178636753,26.0,159.98,159.96,0.72]
[1752178636942,26.0,159.98,159.97,31.94]
[1752178637156,26.68,159.98,159.94,0.72]
[1752178637356,26.68,159.98,159.91,95.4867]
[1752178637660,26.68,159.98,159.92,0.72]
[1752178637844,26.0,159.98,159.92,0.72]
[1752178638767,26.0,159.98,159.93,31.94]
[1752178639060,26.0,159.98,159.94,0.72]
[1752178640166,26.0,159.98,159.93,31.94]
[1752178640349,26.0,159.98,159.94,0.72]
[1752178640676,0.68,159.97,159.94,0.72]
[1752178640850,26.72000006,159.99,159.94,0.72]
[1752178641058,0.68,159.98,159.95,0.72]
[1752178641251,0.68,159.98,159.96,31.92]
[1752178641563,0.68,159.98,159.94,0.72]
[1752178641782,26.72000006,159.99,159.95,0.72]
[1752178642483,0.68,159.98,159.95,0.72]
[1752178643159,0.68,159.97,159.96,31.92]
[1752178643359,0.68,159.97,159.93,89.72]
[1752178643577,0.28432314,159.98,159.93,89.72]
[1752178643746,0.68,159.96,159.93,89.72]
[1752178644244,0.68,159.96,159.93,0.72]
[1752178644768,0.96432314,159.98,159.94,0.72]
[1752178645156,0.68,159.98,159.95,32.64]
[1752178645370,0.68,159.98,159.95,0.72]
[1752178646545,0.68,159.97,159.94,0.72]
[1752178647070,26.72000006,159.99,159.94,0.72]
[1752178647274,0.68,159.98,159.95,31.92]
[1752178647463,0.68,159.98,159.94,0.72]
[1752178647772,26.04000006,159.99,159.94,0.72]
[1752178647968,0.68,159.97,159.94,0.72]
[1752178649772,0.68,159.97,159.95,31.92]
[1752178650070,0.68,159.97,159.94,0.72]
[1752178650675,0.68,159.96,159.92,0.72]
[1752178650965,0.68,159.95,159.92,0.72]
[1752178651152,0.68,159.95,159.91,0.79]
[1752178651358,0.68,159.95,159.91,89.79]
[1752178652175,0.68,159.95,159.92,31.92]
[1752178652654,0.68,159.95,159.92,32.64]
[1752178653269,0.68,159.95,159.92,31.92]
[1752178653661,0.68,159.95,159.91,89.79]
[1752178653876,0.68,159.95,159.92,31.92]
[1752178654969,0.68,159.95,159.91,89.79]
[1752178655174,0.68,159.95,159.93,31.92]
[1752178655383,0.68,159.95,159.91,89.79]
[1752178656184,0.68,159.95,159.91,0.79]
[1752178656477,26.68,159.95,159.91,0.07]
[1752178656680,0.68,159.94,159.91,0.07]
[1752178656875,0.68,159.93,159.91,0.07]
[1752178658468,0.68,159.92,159.91,0.07]
[1752178658673,43.74900711,159.92,159.91,0.07]
[1752178658871,45.52326868,159.92,159.91,0.07]
[1752178659077,52.21747348,159.92,159.91,0.07]
[1752178659778,52.21747348,159.92,159.91,31.99]
[1752178661791,52.21747348,159.92,159.91,0.03]
[1752178662085,52.21747348,159.92,159.91,31.95]
[1752178662468,52.21747348,159.92,159.91,0.03]
[1752178662661,57.21647348,159.92,159.91,31.95]
[1752178663562,57.21647348,159.92,159.91,0.03]
[1752178663767,57.21647348,159.92,159.91,31.95]
[1752178663968,57.21647348,159.92,159.91,0.03]
[1752178664170,57.21647348,159.92,159.91,31.95]
[1752178664365,57.21647348,159.92,159.91,0.03]
[1752178664571,57.21647348,159.92,159.91,31.95]
[1752178667275,57.21647348,159.92,159.91,0.03]
[1752178667577,57.21647348,159.92,159.91,31.95]
[1752178668382,56.78998877,159.92,159.91,31.95]
[1752178668887,56.93215034,159.92,159.91,31.95]
[1752178669093,57.21647348,159.92,159.91,31.95]
[1752178671480,57.21647348,159.92,159.91,0.03]
[1752178671681,57.21647348,159.92,159.91,31.95]
[1752178673689,57.21647348,159.92,159.91,0.03]
[1752178673865,17.21116868,159.91,159.89,0.04]
[1752178674069,17.92116868,159.91,159.89,0.04]
[1752178674296,17.92116868,159.9,159.89,0.04]
[1752178674880,24.5520586,159.9,159.89,0.04]
[1752178675374,24.5520586,159.9,159.89,31.96]
[1752178676386,24.5520586,159.9,159.89,0.04]
[1752178676595,24.5520586,159.9,159.89,31.96]
[1752178677095,24.5520586,159.9,159.89,0.04]
[1752178677412,24.5520586,159.9,159.89,31.96]
[1752178677781,34.24941533,159.9,159.89,0.04]
[1752178677973,34.24941533,159.9,159.88,26.98]
[1752178677974,31.53482232,159.89,159.88,26.98]
[1752178678177,38.87571224,159.89,159.88,58.9]
[1752178678378,38.87571224,159.89,159.87,0.2]
[1752178678692,43.21116868,159.84,159.83,0.2]
[1752178678888,49.08824732,159.84,159.83,0.2]
[1752178679203,49.79824732,159.84,159.83,0.2]
[1752178679584,56.41532478,159.84,159.83,32.12]
[1752178682506,56.41532478,159.84,159.83,0.2]
[1752178682814,66.11315103,159.84,159.83,0.2]
[1752178682986,64.86189978,159.84,159.83,32.12]
[1752178683184,64.57757664,159.84,159.83,32.12]
[1752178683409,64.86189978,159.84,159.83,32.12]
[1752178684281,55.27884007,159.84,159.83,32.12]
[1752178684484,42.78468397,159.84,159.83,32.12]
[1752178684895,42.92684554,159.84,159.83,32.12]
[1752178685190,43.21116868,159.84,159.83,32.12]
[1752178687403,43.21116868,159.84,159.83,32.81]
[1752178687708,43.21116868,159.84,159.83,32.12]
[1752178688100,43.21116868,159.84,159.83,0.2]
[1752178688301,43.92116868,159.84,159.83,0.2]
[1752178688701,56.35565992,159.84,159.83,32.12]
[1752178688908,66.05348617,159.84,159.83,32.12]
[1752178690798,64.80223492,159.84,159.83,32.12]
[1752178691591,55.64565992,159.84,159.83,32.12]
[1752178691916,23.34209657,159.84,159.83,32.12]
[1752178692096,23.76858128,159.84,159.83,32.12]
[1752178692289,0.42648471,159.84,159.83,32.12]
[1752178692488,6.55513929,159.84,159.83,32.12]
[1752178692782,6.981624,159.84,159.83,32.12]
[1752178692987,0.42648471,159.84,159.83,32.12]
[1752178700011,1.12648471,159.84,159.83,32.12]
[1752178700621,0.42648471,159.84,159.83,32.12]
[1752178702290,0.42648471,159.84,159.83,32.78]
[1752178702504,26.0,159.84,159.83,32.78]
[1752178702912,26.28432314,159.84,159.83,32.78]
[1752178707922,26.28432314,159.84,159.83,32.12]
[1752178708832,32.87937389,159.84,159.83,32.12]
[1752178710133,49.80621943,159.84,159.83,32.12]
[1752178712726,49.80621943,159.84,159.83,32.78]
[1752178712928,26.28432314,159.84,159.83,32.78]
[1752178715933,43.91116868,159.84,159.83,0.2]
[1752178716238,24.52368467,159.84,159.83,0.2]
[1752178716465,30.40076331,159.84,159.83,0.2]
[1752178716749,31.65201456,159.84,159.83,32.1]
[1752178717042,30.40076331,159.84,159.83,32.1]
[1752178721134,30.42076331,159.84,159.83,32.1]
[1752178728351,29.70076331,159.84,159.83,32.1]
[1752178728539,30.42076331,159.84,159.83,32.1]
[1752178731759,30.42076331,159.84,159.83,0.2]
[1752178731937,30.42076331,159.84,159.83,32.1]
[1752178733156,29.70076331,159.84,159.83,32.1]
[1752178733959,30.42076331,159.84,159.83,32.1]
[1752178734833,29.41644017,159.84,159.83,32.79]
[1752178735035,23.53936153,159.84,159.83,32.79]
[1752178735235,23.82368467,159.84,159.83,32.79]
[1752178735461,23.6815231,159.84,159.83,32.79]
[1752178735959,23.82368467,159.84,159.83,32.79]
[1752178739257,32.89683913,159.84,159.83,32.79]
[1752178739564,32.61251599,159.84,159.83,32.79]
[1752178740255,32.61251599,159.84,159.83,39.3298]
[1752178740452,0.06,159.87,159.83,39.3298]
[1752178740754,6.63129583,159.86,159.84,0.69]
[1752178742151,6.69129583,159.87,159.84,0.69]
[1752178744077,0.34432314,159.87,159.84,0.69]
[1752178744374,6.98658978,159.87,159.84,0.65]
[1752178749563,6.98658978,159.87,159.84,0.68]
[1752178752779,6.98658978,159.87,159.84,0.68]
[1752178753983,6.98658978,159.87,159.84,2.2047]
[1752178753984,6.70226664,159.87,159.84,2.2047]
[1752178754187,6.70226664,159.87,159.85,0.71]
[1752178754421,6.70226664,159.87,159.86,31.88]
[1752178754875,6.70226664,159.87,159.86,32.59]
[1752178755685,0.06,159.87,159.86,32.59]
[1752178762979,0.06,159.87,159.86,39.75974735]
[1752178768608,0.06,159.87,159.86,128.75974735]
[1752178769388,0.06,159.87,159.86,128.90190892]
[1752178770590,0.06,159.87,159.86,145.97091603]
[1752178770789,0.06,159.87,159.86,145.34536868]
[1752178772681,0.06,159.87,159.86,130.96625532]
[1752178774686,0.06,159.87,159.86,131.53625532]
[1752178774887,0.06,159.87,159.86,137.44405297]
[1752178775100,0.06,159.87,159.86,131.53625532]
[1752178775697,0.06,159.87,159.86,137.99345532]
[1752178776407,0.06,159.87,159.86,143.90125297]
[1752178777599,4.999,159.92,159.91,26.14216157]
[1752178777785,4.999,159.92,159.91,140.42259991]
[1752178777990,4.999,159.92,159.91,140.36724815]
[1752178779590,4.999,159.92,159.91,167.34724815]
[1752178783416,4.999,159.92,159.91,184.41625526]
[1752178784103,4.999,159.92,159.91,184.3442553]
[1752178786415,4.999,159.92,159.91,152.5042553]
[1752178786626,4.999,159.92,159.91,184.3242553]
[1752178787025,4.999,159.92,159.91,152.5042553]
[1752178787330,4.999,159.92,159.91,184.3242553]
[1752178787500,4.999,159.92,159.91,190.23205295]
[1752178791125,4.999,159.92,159.91,196.37415295]
[1752178792125,4.999,159.92,159.91,158.6463553]
[1752178792316,4.999,159.92,159.91,196.37415295]
[1752178793024,4.999,159.92,159.91,196.40415295]
[1752178793521,5.059,159.92,159.91,196.40415295]
[1752178795224,0.06,159.97,159.91,196.40415295]
[1752178795225,0.06,159.97,159.93,17.21116868]
[1752178795544,0.73,159.97,159.94,32.44523446]
[1752178795822,0.73,159.97,159.94,33.01523446]
[1752178797124,0.06,159.97,159.94,33.01523446]
[1752178797811,0.73,159.97,159.94,33.01523446]
[1752178799823,0.73,159.97,159.94,32.44523446]
[1752178801130,0.73,159.97,159.94,109.20132104]
[1752178802529,0.73,159.97,159.94,76.75608658]
[1752178802727,0.73,159.97,159.95,31.8]
[1752178803119,0.73,159.97,159.94,76.75608658]
[1752178803517,0.73,159.97,159.95,31.8]
[1752178803710,0.73,159.97,159.94,76.75608658]
[1752178803910,0.73,159.97,159.95,31.8]
[1752178804120,0.73,159.97,159.96,31.8]
[1752178804317,0.73,159.97,159.91,103.76608658]
[1752178805111,0.73,159.97,159.92,16.92684554]
[1752178805311,0.73,159.97,159.92,17.49684554]
[1752178805519,0.67,159.96,159.93,31.8]
[1752178805733,0.67,159.95,159.93,31.8]
[1752178806119,0.06,159.97,159.93,31.8]
[1752178806442,0.67,159.96,159.93,31.8]
[1752178807617,0.67,159.96,159.94,31.8]
[1752178807816,2.2981,159.96,159.94,31.8]
[1752178808038,2.2981,159.96,159.91,103.76608658]
[1752178808231,1.6281,159.96,159.91,103.76608658]
[1752178808440,0.67,159.95,159.91,103.76608658]
[1752178808740,0.67,159.95,159.92,31.8]
[1752178810841,0.67,159.95,159.93,31.8]
[1752178811244,0.67,159.95,159.91,103.76608658]
[1752178811426,6.0752,159.94,159.92,31.8]
[1752178811744,0.72,159.93,159.91,27.01]
[1752178812949,0.72,159.93,159.92,31.8]
[1752178813440,0.72,159.93,159.91,27.01]
[1752178814748,0.72,159.93,159.92,31.8]
[1752178814947,0.72,159.93,159.91,27.01]
[1752178815319,0.72,159.93,159.91,0.03]
[1752178816353,0.72,159.95,159.91,0.03]
[1752178816526,0.72,159.96,159.92,0.57]
[1752178816725,0.72,159.96,159.93,32.42527355]
[1752178817855,0.06,159.97,159.94,0.57]
[1752178818032,0.06,159.97,159.95,32.42519537]
[1752178818273,0.06,159.97,159.95,32.99519537]
[1752178819169,0.06,159.97,159.95,109.75128195]
[1752178820267,0.06,159.97,159.95,109.18128195]
[1752178822860,0.06,159.97,159.95,109.75128195]
[1752178823595,0.06,159.97,159.95,109.18128195]
[1752178824084,0.78,159.97,159.95,109.18128195]
[1752178824279,0.72,159.96,159.95,108.55608658]
[1752178824662,0.72,159.96,159.95,135.53608658]
[1752178824994,0.72,159.96,159.95,58.78]
[1752178825366,0.72,159.96,159.95,26.98]
[1752178825577,0.72,159.96,159.95,58.78]
[1752178827267,0.72,159.96,159.95,26.98]
[1752178827467,0.72,159.96,159.95,58.78]
[1752178832672,0.06,159.97,159.95,58.78]
[1752178832872,0.78,159.97,159.95,58.78]
[1752178833372,0.06,159.97,159.95,58.78]
[1752178833969,0.06,159.97,159.95,59.35]
[1752178836670,0.06,159.97,159.95,104.30608658]
[1752178837020,0.06,159.97,159.96,32.97515628]
[1752178837371,0.06,159.97,159.96,32.40515628]
[1752178837565,0.06,159.97,159.96,32.97515628]
[1752178840481,0.06,159.97,159.96,32.40515628]
[1752178841903,0.06,159.97,159.96,32.97515628]
[1752178842073,0.06,159.97,159.96,1.19515628]
[1752178842272,0.06,159.97,159.96,32.97515628]
[1752178842474,0.06,159.97,159.96,109.73124286]
[1752178843695,0.06,159.97,159.96,109.16124286]
[1752178845675,0.06,159.97,159.96,109.73124286]
[1752178846178,0.06,159.97,159.96,109.16124286]
[1752178846790,0.76,159.97,159.96,77.38124286]
[1752178846979,0.76,159.97,159.96,76.75608658]
[1752178847175,0.76,159.97,159.96,108.53608658]
[1752178848479,0.76,159.97,159.96,31.78]
[1752178851796,0.76,159.97,159.95,26.98]
[1752178852105,0.76,159.97,159.96,31.78]
[1752178856402,0.76,159.97,159.95,26.98]
[1752178856710,0.76,159.97,159.96,31.78]
[1752178859525,0.76,159.97,159.95,26.98]
[1752178859691,0.76,159.97,159.96,31.78]